fUSD/lending_fUSD_20241118
["ID","MTS","AMOUNT","RATE_DAILY","PERIOD"]
[342564022,1731967876782,-547.4,9.999e-05,2]
[342564023,1731967876792,-547.4,9.999e-05,2]
[342564024,1731967876805,-798.58268018,0.0001,2]
[342564025,1731967876815,-798.58268018,0.0001,2]
[342564026,1731967876825,-798.58268018,0.0001,2]
[342564027,1731967876836,-798.58268018,0.0001,2]
[342564028,1731967876846,-798.58268018,0.0001,2]
[342564029,1731967876856,-798.58268018,0.0001,2]
[342564030,1731967876866,-798.58268018,0.0001,2]
[342564031,1731967876876,-798.58268018,0.0001,2]
[342564032,1731967876886,-20292.89912628,0.0001,2]
[342564033,1731967876896,-2160681.4269583,0.0001,2]
[342564034,1731967877721,-4214.35254875,0.0001,2]
[342564035,1731967877734,-2032.34111696,0.0001,2]
[342564036,1731967877755,-500.0,9.899e-05,2]
[342564037,1731967877765,-1943907.30144583,0.0001,2]
[342564038,1731967877777,-2586.30599731,0.0001,2]
[342564039,1731967877788,-2850.26475934,0.0001,2]
[342564040,1731967877800,-999.9987984,0.0001,2]
[342564041,1731967877814,-387.51605775,0.0001,2]
[342564042,1731967877826,-5567.12878034,0.0001,2]
[342564043,1731967877846,-547.4,9.999e-05,2]
[342564044,1731967877856,-878.369905,0.0001,2]
[342564045,1731967877871,-1244031.57733239,0.0001,2]
[342564046,1731967878080,-500.0,9.863e-05,2]
[342564047,1731967878090,-500.0,9.998e-05,2]
[342564048,1731967878100,-500.0,9.998e-05,2]
[342564049,1731967878110,-500.0,9.998e-05,2]
[342564050,1731967878119,-500.0,9.998e-05,2]
[342564051,1731967878129,-500.0,9.998e-05,2]
[342564052,1731967878140,-500.0,9.998e-05,2]
[342564053,1731967878149,-500.0,9.998e-05,2]
[342564054,1731967878159,-221.63229795,9.998e-05,2]
[342564055,1731967878171,-278.36770205,9.998e-05,2]
[342564056,1731967878181,-191.82954362,9.998e-05,2]
[342564057,1731967878193,-308.17045638,9.998e-05,2]
[342564058,1731967878203,-500.0,9.998e-05,2]
[342564059,1731967878213,-451.79040362,9.999e-05,2]
[342564060,1731967878243,-95.60959638,9.999e-05,2]
[342564061,1731967878253,-547.4,9.999e-05,2]
[342564062,1731967878262,-547.4,9.999e-05,2]
[342564063,1731967878273,-547.4,9.999e-05,2]
[342564064,1731967878283,-500.0,9.999e-05,2]
[342564065,1731967878293,-547.47,9.999e-05,2]
[342564066,1731967878305,-500.0,9.999e-05,2]
[342564067,1731967878315,-28212.72040372,0.0001,2]
[342564068,1731967878334,-11408.1834,0.0001,2]
[342564069,1731967878345,-690.34200092,0.0001,2]
[342564070,1731967878361,-1509.64259488,0.0001,2]
[342564071,1731967878373,-9509.447793,0.0001,2]
[342564072,1731967878538,-500.0,9.999e-05,2]
[342564073,1731967878548,-500.0,9.999e-05,2]
[342564074,1731967878559,-550.18,9.999e-05,2]
[342564075,1731967878569,-500.0,9.999e-05,2]
[342564076,1731967878582,-500.0,9.999e-05,2]
[342564077,1731967878592,-2736.35007779,0.0001,2]
[342564078,1731967878614,-313.4371296,0.0001,2]
[342564079,1731967878626,-22959.98544512,0.0001,2]
[342564080,1731967878658,-7061.48723894,0.0001,2]
[342564081,1731967878671,-1340.24079929,0.0001,2]
[342564082,1731967878691,-513.18500005,0.0001,2]
[342564083,1731967878703,-5748.18071088,0.0001,2]
[342564084,1731967878719,-341.46735558,0.0001,2]
[342564085,1731967878731,-2185.95480085,0.0001,2]
[342564086,1731967878742,-496.05836076,0.0001,2]
[342564087,1731967878762,-48182.36127581,0.0001,2]
[342564088,1731967879072,-1647.1,0.0001,2]
[342564089,1731967879084,-137052.17643417,0.0001,2]
[342564090,1731967879113,-689.79,0.0001,2]
[342564091,1731967879124,-1123.5876922,0.0001,2]
[342564092,1731967879136,-2076.42009453,0.0001,2]
[342564093,1731967879176,-7351.00700055,0.0001,2]
[342564095,1731968235438,602.18,8.219e-05,2]
[342564096,1731968731648,3409.03422234,1e-06,2]
[342564106,1731968933173,572.07,8.219e-05,2]
[342564122,1731969032703,-250.0,8.847e-05,2]
[342564123,1731969032713,-279.73,8.852e-05,2]
[342564124,1731969032722,-1000.0,8.858e-05,2]
[342564125,1731969032732,-150.0,9.711e-05,2]
[342564126,1731969032742,-150.0,9.726e-05,2]
[342564127,1731969032751,-150.0,9.726e-05,2]
[342564128,1731969032761,-150.0,9.726e-05,2]
[342564129,1731969032770,-1007.19270541,9.726e-05,2]
[342564130,1731969032779,-150.0,9.731e-05,2]
[342564131,1731969032789,-150.0,9.736e-05,2]
[342564132,1731969032798,-150.0,9.737e-05,2]
[342564133,1731969032807,-1500.0,9.739e-05,2]
[342564134,1731969032816,-300.0,9.739e-05,2]
[342564135,1731969032826,-1500.0,9.74e-05,2]
[342564136,1731969032838,-150.0,9.741e-05,2]
[342564137,1731969032847,-150.0,9.745e-05,2]
[342564138,1731969032857,-150.0,9.745e-05,2]
[342564139,1731969032866,-150.0,9.745e-05,2]
[342564140,1731969032876,-1500.0,9.759e-05,2]
[342564141,1731969032885,-150.0,9.76e-05,2]
[342564142,1731969032894,-1500.0,9.763e-05,2]
[342564143,1731969032904,-1000.0,9.763e-05,2]
[342564144,1731969032914,-150.0,9.764e-05,2]
[342564145,1731969032924,-150.0,9.765e-05,2]
[342564146,1731969032933,-150.0,9.768e-05,2]
[342564147,1731969032942,-150.0,9.768e-05,2]
[342564148,1731969032951,-150.0,9.773e-05,2]
[342564149,1731969032961,-150.0,9.774e-05,2]
[342564150,1731969032970,-1500.0,9.776e-05,2]
[342564151,1731969032979,-150.0,9.777e-05,2]
[342564152,1731969032988,-150.0,9.777e-05,2]
[342564153,1731969032997,-1500.0,9.779e-05,2]
[342564154,1731969033007,-150.0,9.779e-05,2]
[342564155,1731969033016,-150.0,9.78e-05,2]
[342564156,1731969033025,-150.0,9.781e-05,2]
[342564157,1731969033035,-150.0,9.782e-05,2]
[342564158,1731969033044,-150.0,9.786e-05,2]
[342564159,1731969033054,-150.0,9.791e-05,2]
[342564160,1731969033064,-150.0,9.792e-05,2]
[342564161,1731969033073,-1500.0,9.793e-05,2]
[342564162,1731969033084,-150.0,9.794e-05,2]
[342564163,1731969033094,-150.0,9.796e-05,2]
[342564164,1731969033103,-150.0,9.799e-05,2]
[342564165,1731969033113,-270.79792538,9.8e-05,2]
[342564166,1731969033124,-150.0,9.803e-05,2]
[342564167,1731969033133,-150.0,9.805e-05,2]
[342564168,1731969033143,-1500.0,9.808e-05,2]
[342564169,1731969033153,-150.0,9.808e-05,2]
[342564170,1731969033163,-150.0,9.813e-05,2]
[342564171,1731969033173,-150.0,9.818e-05,2]
[342564172,1731969033183,-150.0,9.821e-05,2]
[342564173,1731969033192,-150.0,9.825e-05,2]
[342564174,1731969033202,-150.0,9.826e-05,2]
[342564175,1731969033212,-150.0,9.829e-05,2]
[342564176,1731969033222,-98.379881,9.83e-05,2]
[342564177,1731969033234,-1391.620119,9.83e-05,2]
[342564178,1731969033244,-1382.27809705,9.834e-05,2]
[342564179,1731969033255,-117.72190295,9.834e-05,2]
[342564180,1731969033264,-150.0,9.836e-05,2]
[342564181,1731969033273,-150.0,9.836e-05,2]
[342564182,1731969033282,-150.0,9.836e-05,2]
[342564183,1731969033292,-150.0,9.838e-05,2]
[342564184,1731969033301,-150.0,9.84e-05,2]
[342564185,1731969033310,-150.0,9.843e-05,2]
[342564186,1731969033319,-150.0,9.846e-05,2]
[342564187,1731969033332,-150.0,9.846e-05,2]
[342564188,1731969033342,-24.70585705,9.847e-05,2]
[342564189,1731969033353,-125.29414295,9.847e-05,2]
[342564190,1731969033363,-150.0,9.852e-05,2]
[342564191,1731969033373,-150.0,9.857e-05,2]
[342564192,1731969033383,-150.0,9.858e-05,2]
[342564193,1731969033393,-150.0,9.858e-05,2]
[342564194,1731969033402,-150.0,9.861e-05,2]
[342564195,1731969033412,-862.22003985,9.861e-05,2]
[342564196,1731969033423,-637.77996015,9.861e-05,2]
[342564197,1731969033432,-500.0,9.863e-05,2]
[342564198,1731969033443,-150.0,9.863e-05,2]
[342564199,1731969033452,-150.0,9.869e-05,2]
[342564200,1731969033462,-150.0,9.869e-05,2]
[342564201,1731969033471,-150.0,9.871e-05,2]
[342564202,1731969033480,-150.0,9.874e-05,2]
[342564203,1731969033490,-150.0,9.878e-05,2]
[342564204,1731969033499,-150.0,9.879e-05,2]
[342564205,1731969033509,-150.0,9.879e-05,2]
[342564206,1731969033518,-150.0,9.883e-05,2]
[342564207,1731969033527,-150.0,9.884e-05,2]
[342564208,1731969033537,-150.0,9.889e-05,2]
[342564209,1731969033547,-150.0,9.892e-05,2]
[342564210,1731969033556,-150.0,9.893e-05,2]
[342564211,1731969033565,-0.95767535,9.895e-05,2]
[342564212,1731969033579,-149.04232465,9.895e-05,2]
[342564213,1731969033589,-150.0,9.896e-05,2]
[342564214,1731969033598,-150.0,9.896e-05,2]
[342564215,1731969033607,-150.0,9.897e-05,2]
[342564216,1731969033617,-214.87080899,9.899e-05,2]
[342564217,1731969033628,-1009.12919101,9.899e-05,2]
[342564218,1731969033637,-228.31696586,9.899e-05,2]
[342564219,1731969033647,-358.55384313,9.9e-05,2]
[342564220,1731969033658,-141.44615687,9.9e-05,2]
[342564221,1731969033668,-150.0,9.9e-05,2]
[342564222,1731969033677,-932.55384313,9.9e-05,2]
[342564223,1731969033692,-454.92529219,9.9e-05,2]
[342564224,1731969033703,-1804.11367501,9.9e-05,2]
[342564225,1731969033715,-1122.76140021,9.9e-05,2]
[342564226,1731969033725,-150.0,9.901e-05,2]
[342564227,1731969033734,-150.0,9.902e-05,2]
[342564228,1731969033744,-150.0,9.908e-05,2]
[342564229,1731969033753,-813.91313364,9.91e-05,2]
[342564230,1731969033762,-150.0,9.913e-05,2]
[342564231,1731969033772,-150.0,9.915e-05,2]
[342564232,1731969033781,-150.0,9.918e-05,2]
[342564233,1731969033791,-150.0,9.918e-05,2]
[342564234,1731969033800,-150.0,9.919e-05,2]
[342564235,1731969033809,-150.0,9.919e-05,2]
[342564236,1731969033818,-500.0,9.92e-05,2]
[342564237,1731969033830,-150.0,9.921e-05,2]
[342564238,1731969033840,-150.0,9.921e-05,2]
[342564239,1731969033850,-150.0,9.921e-05,2]
[342564240,1731969033859,-150.0,9.922e-05,2]
[342564241,1731969033869,-800.77513023,9.923e-05,2]
[342564242,1731969033879,-150.0,9.926e-05,2]
[342564243,1731969033888,-1500.0,9.926e-05,2]
[342564244,1731969033898,-150.0,9.927e-05,2]
[342564245,1731969033907,-150.0,9.928e-05,2]
[342564246,1731969033917,-150.0,9.928e-05,2]
[342564247,1731969033926,-150.0,9.938e-05,2]
[342564248,1731969033936,-150.0,9.939e-05,2]
[342564249,1731969033945,-150.0,9.942e-05,2]
[342564250,1731969033955,-1500.0,9.942e-05,2]
[342564251,1731969033964,-150.0,9.945e-05,2]
[342564252,1731969033974,-150.0,9.945e-05,2]
[342564253,1731969033984,-150.0,9.95e-05,2]
[342564254,1731969033994,-150.0,9.954e-05,2]
[342564255,1731969034004,-150.0,9.954e-05,2]
[342564256,1731969034014,-150.0,9.957e-05,2]
[342564257,1731969034024,-279.73,9.958e-05,2]
[342564258,1731969034033,-150.0,9.962e-05,2]
[342564259,1731969034043,-150.0,9.962e-05,2]
[342564260,1731969034053,-150.0,9.963e-05,2]
[342564261,1731969034063,-1000.0,9.965e-05,2]
[342564262,1731969034072,-150.0,9.967e-05,2]
[342564263,1731969034084,-150.0,9.967e-05,2]
[342564264,1731969034094,-150.0,9.969e-05,2]
[342564265,1731969034103,-150.0,9.976e-05,2]
[342564266,1731969034113,-150.0,9.977e-05,2]
[342564267,1731969034122,-150.0,9.978e-05,2]
[342564268,1731969034133,-150.0,9.978e-05,2]
[342564269,1731969034142,-2369.24507904,9.98e-05,2]
[342564270,1731969034160,-1580.49409564,9.98e-05,2]
[342564271,1731969034171,-1575.8454,9.98e-05,2]
[342564272,1731969034182,-1395.70067532,9.98e-05,2]
[342564273,1731969034202,-4064.67310528,9.98e-05,2]
[342564274,1731969034214,-885.83,9.98e-05,2]
[342564284,1731969038494,-150.0,9.722e-05,2]
[342564285,1731969038504,-150.0,9.763e-05,2]
[342564286,1731969038514,-150.0,9.765e-05,2]
[342564287,1731969038524,-150.0,9.775e-05,2]
[342564288,1731969038533,-150.0,9.784e-05,2]
[342564289,1731969038542,-150.0,9.786e-05,2]
[342564290,1731969038551,-150.0,9.789e-05,2]
[342564291,1731969038560,-193.09786449,9.791e-05,2]
[342564292,1731969038606,-13.57351406,9.791e-05,2]
[342564293,1731969038616,-150.0,9.854e-05,2]
[342564294,1731969038626,-150.0,9.855e-05,2]
[342564295,1731969038636,-3.48166174,9.86e-05,2]
[342564296,1731969038648,-146.51833826,9.86e-05,2]
[342564297,1731969038658,-150.0,9.871e-05,2]
[342564298,1731969038668,-150.0,9.878e-05,2]
[342564299,1731969038678,-150.0,9.888e-05,2]
[342564300,1731969038688,-150.0,9.894e-05,2]
[342564301,1731969038698,-150.0,9.895e-05,2]
[342564302,1731969038708,-150.0,9.915e-05,2]
[342564303,1731969038718,-150.0,9.917e-05,2]
[342564304,1731969038728,-150.0,9.936e-05,2]
[342564305,1731969038739,-150.0,9.956e-05,2]
[342564306,1731969038749,-240362.75495803,9.98e-05,2]
[342564307,1731969038758,-1500.0,9.98e-05,2]
[342564308,1731969038768,-4378.28256731,9.982e-05,2]
[342564309,1731969038777,-150.0,9.986e-05,2]
[342564310,1731969038786,-598.9940921,9.988e-05,2]
[342564311,1731969038795,-150.0,9.988e-05,2]
[342564312,1731969038804,-167.5251544,9.988e-05,2]
[342564313,1731969038813,-101276.71217148,9.993e-05,2]
[342564314,1731969038822,-952.509,9.995e-05,2]
[342564315,1731969038838,-500.0,9.998e-05,2]
[342564316,1731969038847,-502.07567976,9.998e-05,2]
[342564317,1731969038856,-150.0,9.998e-05,2]
[342564318,1731969038866,-500.0,9.998e-05,2]
[342564319,1731969038876,-500.0,9.998e-05,2]
[342564320,1731969038886,-500.0,9.999e-05,2]
[342564321,1731969038895,-500.0,9.999e-05,2]
[342564322,1731969038905,-500.0,9.999e-05,2]
[342564323,1731969038914,-500.0,9.999e-05,2]
[342564324,1731969038923,-500.0,9.999e-05,2]
[342564325,1731969038933,-500.0,9.999e-05,2]
[342564327,1731969038943,-150.4,9.999e-05,2]
[342564329,1731969038952,-370.0,9.999e-05,2]
[342564330,1731969038961,-586.28,9.999e-05,2]
[342564332,1731969038970,-500.0,9.999e-05,2]
[342564333,1731969038979,-500.0,9.999e-05,2]
[342564335,1731969038988,-500.0,9.999e-05,2]
[342564337,1731969038998,-500.0,9.999e-05,2]
[342564339,1731969039008,-500.0,9.999e-05,2]
[342564341,1731969039017,-500.0,9.999e-05,2]
[342564343,1731969039026,-478.3,9.999e-05,2]
[342564346,1731969039036,-500.0,9.999e-05,2]
[342564349,1731969039045,-500.0,9.999e-05,2]
[342564351,1731969039055,-500.0,9.999e-05,2]
[342564354,1731969039064,-500.0,9.999e-05,2]
[342564356,1731969039073,-500.0,9.999e-05,2]
[342564358,1731969039087,-500.0,9.999e-05,2]
[342564360,1731969039097,-500.0,9.999e-05,2]
[342564362,1731969039106,-500.0,9.999e-05,2]
[342564364,1731969039115,-500.0,9.999e-05,2]
[342564366,1731969039124,-273.87,9.999e-05,2]
[342564368,1731969039133,-500.0,9.999e-05,2]
[342564370,1731969039142,-500.0,9.999e-05,2]
[342564372,1731969039151,-500.0,9.999e-05,2]
[342564373,1731969039160,-1500.0,9.999e-05,2]
[342564375,1731969039169,-500.0,9.999e-05,2]
[342564377,1731969039179,-500.0,9.999e-05,2]
[342564378,1731969039188,-648.81912013,9.999e-05,2]
[342564379,1731969039197,-500.0,9.999e-05,2]
[342564380,1731969039206,-500.0,9.999e-05,2]
[342564381,1731969039215,-457.98511662,9.999e-05,2]
[342564382,1731969039224,-500.0,9.999e-05,2]
[342564383,1731969039233,-500.0,9.999e-05,2]
[342564384,1731969039245,-271.39,9.999e-05,2]
[342564385,1731969039255,-500.0,9.999e-05,2]
[342564386,1731969039266,-500.0,9.999e-05,2]
[342564387,1731969039275,-500.0,9.999e-05,2]
[342564388,1731969039285,-500.0,9.999e-05,2]
[342564389,1731969039297,-500.0,9.999e-05,2]
[342564390,1731969039306,-500.0,9.999e-05,2]
[342564391,1731969039317,-500.0,9.999e-05,2]
[342564392,1731969039328,-500.0,9.999e-05,2]
[342564393,1731969039339,-500.0,9.999e-05,2]
[342564394,1731969039348,-500.0,9.999e-05,2]
[342564395,1731969039357,-500.0,9.999e-05,2]
[342564396,1731969039366,-500.0,9.999e-05,2]
[342564397,1731969039376,-500.0,9.999e-05,2]
[342564398,1731969039386,-500.0,9.999e-05,2]
[342564399,1731969039398,-500.0,9.999e-05,2]
[342564400,1731969039407,-500.0,9.999e-05,2]
[342564401,1731969039418,-500.0,9.999e-05,2]
[342564402,1731969039428,-500.0,9.999e-05,2]
[342564403,1731969039438,-500.0,9.999e-05,2]
[342564404,1731969039447,-280.61995823,9.999e-05,2]
[342564405,1731969039456,-500.0,9.999e-05,2]
[342564406,1731969039466,-500.0,9.999e-05,2]
[342564407,1731969039476,-500.0,9.999e-05,2]
[342564408,1731969039485,-500.0,9.999e-05,2]
[342564409,1731969039495,-500.0,9.999e-05,2]
[342564410,1731969039504,-666.44,9.999e-05,2]
[342564411,1731969039513,-500.0,9.999e-05,2]
[342564412,1731969039522,-666.44,9.999e-05,2]
[342564413,1731969039532,-500.0,9.999e-05,2]
[342564414,1731969039541,-666.44,9.999e-05,2]
[342564415,1731969039551,-463.69,9.999e-05,2]
[342564416,1731969039561,-666.44,9.999e-05,2]
[342564417,1731969039571,-666.44,9.999e-05,2]
[342564418,1731969039580,-563.02,9.999e-05,2]
[342564419,1731969039592,-666.44,9.999e-05,2]
[342564420,1731969039601,-563.02,9.999e-05,2]
[342564421,1731969039610,-666.44,9.999e-05,2]
[342564422,1731969039619,-563.02,9.999e-05,2]
[342564423,1731969039628,-666.44,9.999e-05,2]
[342564424,1731969039637,-563.02,9.999e-05,2]
[342564425,1731969039649,-666.44,9.999e-05,2]
[342564426,1731969039659,-563.02,9.999e-05,2]
[342564427,1731969039668,-666.44,9.999e-05,2]
[342564428,1731969039678,-563.02,9.999e-05,2]
[342564429,1731969039687,-666.44,9.999e-05,2]
[342564430,1731969039697,-563.02,9.999e-05,2]
[342564431,1731969039706,-666.44,9.999e-05,2]
[342564432,1731969039715,-563.02,9.999e-05,2]
[342564433,1731969039724,-666.44,9.999e-05,2]
[342564434,1731969039734,-563.02,9.999e-05,2]
[342564435,1731969039744,-666.44,9.999e-05,2]
[342564436,1731969039753,-563.02,9.999e-05,2]
[342564437,1731969039763,-666.44,9.999e-05,2]
[342564438,1731969039773,-563.02,9.999e-05,2]
[342564439,1731969039782,-666.44,9.999e-05,2]
[342564440,1731969039791,-563.02,9.999e-05,2]
[342564441,1731969039800,-666.44,9.999e-05,2]
[342564442,1731969039810,-563.02,9.999e-05,2]
[342564443,1731969039819,-666.44,9.999e-05,2]
[342564444,1731969039828,-563.02,9.999e-05,2]
[342564445,1731969039842,-666.44,9.999e-05,2]
[342564446,1731969039851,-563.02,9.999e-05,2]
[342564447,1731969039860,-666.44,9.999e-05,2]
[342564448,1731969039870,-563.02,9.999e-05,2]
[342564449,1731969039880,-666.44,9.999e-05,2]
[342564450,1731969039890,-563.02,9.999e-05,2]
[342564451,1731969039899,-666.44,9.999e-05,2]
[342564452,1731969039911,-666.44,9.999e-05,2]
[342564453,1731969039921,-563.02,9.999e-05,2]
[342564454,1731969039930,-666.61370243,9.999e-05,2]
[342564455,1731969039940,-563.02,9.999e-05,2]
[342564456,1731969039950,-563.02,9.999e-05,2]
[342564457,1731969039959,-563.02,9.999e-05,2]
[342564458,1731969039968,-563.02,9.999e-05,2]
[342564459,1731969039978,-563.02,9.999e-05,2]
[342564460,1731969039987,-563.16283828,9.999e-05,2]
[342564461,1731969039997,-500.0,9.999e-05,2]
[342564462,1731969040006,-500.0,9.999e-05,2]
[342564463,1731969040016,-500.0,9.999e-05,2]
[342564464,1731969040025,-500.0,9.999e-05,2]
[342564465,1731969040035,-500.0,9.999e-05,2]
[342564466,1731969040044,-500.0,9.999e-05,2]
[342564467,1731969040054,-500.0,9.999e-05,2]
[342564468,1731969040063,-500.0,9.999e-05,2]
[342564469,1731969040073,-500.0,9.999e-05,2]
[342564470,1731969040084,-500.0,9.999e-05,2]
[342564471,1731969040093,-500.0,9.999e-05,2]
[342564472,1731969040103,-500.0,9.999e-05,2]
[342564474,1731969040334,-500.0,9.999e-05,2]
[342564475,1731969040343,-500.0,9.999e-05,2]
[342564476,1731969040353,-500.0,9.999e-05,2]
[342564477,1731969040363,-500.0,9.999e-05,2]
[342564478,1731969040372,-500.0,9.999e-05,2]
[342564479,1731969040384,-500.0,9.999e-05,2]
[342564480,1731969040396,-500.0,9.999e-05,2]
[342564481,1731969040408,-282.9084876,9.999e-05,2]
[342564482,1731969040419,-500.0,9.999e-05,2]
[342564483,1731969040429,-500.0,9.999e-05,2]
[342564484,1731969040440,-500.0,9.999e-05,2]
[342564485,1731969040449,-500.0,9.999e-05,2]
[342564486,1731969040459,-500.0,9.999e-05,2]
[342564487,1731969040468,-500.0,9.999e-05,2]
[342564488,1731969040479,-500.0,9.999e-05,2]
[342564489,1731969040489,-500.0,9.999e-05,2]
[342564490,1731969040500,-500.0,9.999e-05,2]
[342564491,1731969040510,-500.0,9.999e-05,2]
[342564492,1731969040521,-500.0,9.999e-05,2]
[342564493,1731969040530,-247.35438136,9.999e-05,2]
[342564494,1731969040541,-500.0,9.999e-05,2]
[342564495,1731969040550,-500.0,9.999e-05,2]
[342564496,1731969040559,-500.0,9.999e-05,2]
[342564497,1731969040568,-500.0,9.999e-05,2]
[342564498,1731969040577,-500.0,9.999e-05,2]
[342564499,1731969040589,-647.53,9.999e-05,2]
[342564500,1731969040598,-500.0,9.999e-05,2]
[342564501,1731969040607,-500.0,9.999e-05,2]
[342564502,1731969040616,-500.0,9.999e-05,2]
[342564503,1731969040625,-500.0,9.999e-05,2]
[342564504,1731969040636,-500.0,9.999e-05,2]
[342564505,1731969040645,-500.0,9.999e-05,2]
[342564506,1731969040654,-500.0,9.999e-05,2]
[342564507,1731969040663,-500.0,9.999e-05,2]
[342564508,1731969040672,-500.0,9.999e-05,2]
[342564509,1731969040682,-500.0,9.999e-05,2]
[342564510,1731969040691,-500.0,9.999e-05,2]
[342564511,1731969040701,-500.0,9.999e-05,2]
[342564512,1731969040710,-500.0,9.999e-05,2]
[342564513,1731969040720,-500.0,9.999e-05,2]
[342564514,1731969040729,-500.0,9.999e-05,2]
[342564515,1731969040739,-500.0,9.999e-05,2]
[342564516,1731969040750,-293.8271402,9.999e-05,2]
[342564517,1731969040759,-500.0,9.999e-05,2]
[342564518,1731969040769,-500.0,9.999e-05,2]
[342564519,1731969040777,-500.0,9.999e-05,2]
[342564520,1731969040786,-500.0,9.999e-05,2]
[342564521,1731969040796,-500.0,9.999e-05,2]
[342564522,1731969040805,-500.0,9.999e-05,2]
[342564524,1731969040814,-588.75,9.999e-05,2]
[342564526,1731969040824,-613.09,9.999e-05,2]
[342564527,1731969040835,-500.0,9.999e-05,2]
[342564529,1731969040845,-500.0,9.999e-05,2]
[342564531,1731969040855,-500.0,9.999e-05,2]
[342564533,1731969040864,-500.0,9.999e-05,2]
[342564535,1731969040874,-500.0,9.999e-05,2]
[342564537,1731969040883,-500.0,9.999e-05,2]
[342564540,1731969040892,-500.0,9.999e-05,2]
[342564542,1731969040902,-610.22,9.999e-05,2]
[342564544,1731969040912,-500.0,9.999e-05,2]
[342564546,1731969040921,-500.0,9.999e-05,2]
[342564548,1731969040931,-500.0,9.999e-05,2]
[342564550,1731969040940,-500.0,9.999e-05,2]
[342564552,1731969040948,-500.0,9.999e-05,2]
[342564554,1731969040958,-413.0,9.999e-05,2]
[342564556,1731969040967,-500.0,9.999e-05,2]
[342564557,1731969040976,-500.0,9.999e-05,2]
[342564559,1731969040985,-500.0,9.999e-05,2]
[342564561,1731969040994,-500.0,9.999e-05,2]
[342564563,1731969041004,-500.0,9.999e-05,2]
[342564565,1731969041013,-500.0,9.999e-05,2]
[342564567,1731969041023,-461.61,9.999e-05,2]
[342564569,1731969041032,-500.0,9.999e-05,2]
[342564571,1731969041041,-500.0,9.999e-05,2]
[342564573,1731969041050,-500.0,9.999e-05,2]
[342564575,1731969041059,-500.0,9.999e-05,2]
[342564577,1731969041068,-500.0,9.999e-05,2]
[342564579,1731969041078,-239.0,9.999e-05,2]
[342564581,1731969041088,-500.0,9.999e-05,2]
[342564583,1731969041100,-174.56,9.999e-05,2]
[342564585,1731969041109,-500.0,9.999e-05,2]
[342564587,1731969041119,-500.0,9.999e-05,2]
[342564589,1731969041128,-500.0,9.999e-05,2]
[342564590,1731969041137,-528.64772483,9.999e-05,2]
[342564592,1731969041147,-500.0,9.999e-05,2]
[342564594,1731969041156,-500.0,9.999e-05,2]
[342564595,1731969041165,-500.0,9.999e-05,2]
[342564596,1731969041174,-500.0,9.999e-05,2]
[342564597,1731969041183,-500.0,9.999e-05,2]
[342564598,1731969041192,-500.0,9.999e-05,2]
[342564599,1731969041202,-642.01,9.999e-05,2]
[342564600,1731969041211,-500.0,9.999e-05,2]
[342564601,1731969041220,-500.0,9.999e-05,2]
[342564602,1731969041231,-500.0,9.999e-05,2]
[342564603,1731969041240,-500.0,9.999e-05,2]
[342564604,1731969041250,-500.0,9.999e-05,2]
[342564605,1731969041259,-500.0,9.999e-05,2]
[342564606,1731969041269,-500.0,9.999e-05,2]
[342564607,1731969041278,-500.0,9.999e-05,2]
[342564608,1731969041288,-500.0,9.999e-05,2]
[342564609,1731969041296,-500.0,9.999e-05,2]
[342564610,1731969041305,-500.0,9.999e-05,2]
[342564611,1731969041315,-592.0,9.999e-05,2]
[342564612,1731969041323,-500.0,9.999e-05,2]
[342564613,1731969041334,-500.0,9.999e-05,2]
[342564614,1731969041343,-572.58539146,9.999e-05,2]
[342564615,1731969041352,-832.49,9.999e-05,2]
[342564616,1731969041361,-489.20428999,9.999e-05,2]
[342564617,1731969041370,-832.49,9.999e-05,2]